bitfinex/quotes_SOLUSD_20240530
["timestamp","ask_amount","ask_price","bid_price","bid_amount"]
[1717062528431,7.02,165.52,165.48,62.2359]
[1717062529220,7.02,165.52,165.5,60.0]
[1717062529519,2.2349,165.55,165.5,60.0]
[1717062529732,7.02,165.53,165.5,60.0]
[1717062529929,2.2349,165.55,165.5,60.0]
[1717062530141,7.02,165.53,165.5,60.0]
[1717062530628,7.02,165.51,165.46,60.0]
[1717062530853,7.02,165.5,165.48,60.0]
[1717062535243,2.2353,165.53,165.48,60.0]
[1717062535428,2.2351,165.54,165.5,60.0]
[1717062535627,7.02,165.53,165.5,60.0]
[1717062536120,7.02,165.52,165.48,62.2358]
[1717062537250,7.02,165.53,165.49,2.2357]
[1717062537749,7.02,165.52,165.48,62.2358]
[1717062540246,7.02,165.52,165.48,2.2358]
[1717062540632,7.02,165.52,165.48,62.2358]
[1717062540842,7.02,165.52,165.48,2.2358]
[1717062542151,7.02,165.51,165.48,2.2358]
[1717062542532,7.02,165.52,165.45,388.7]
[1717062542737,28.08,165.52,165.45,388.7]
[1717062542942,2.2357,165.5,165.45,388.7]
[1717062543145,28.08,165.52,165.45,388.7]
[1717062543447,28.08,165.52,165.38,8.9489]
[1717062543448,7.02,165.46,165.38,8.9489]
[1717062543756,7.02,165.43,165.39,62.237]
[1717062543932,7.02,165.42,165.39,62.237]
[1717062544123,7.02,165.42,165.4,2.2369]
[1717062544322,7.02,165.42,165.36,96.2]
[1717062544522,7.02,165.42,165.37,60.0]
[1717062544728,7.02,165.42,165.39,2.2371]
[1717062544948,7.02,165.42,165.4,2.2369]
[1717062545147,7.02,165.42,165.36,7.02]
[1717062545450,7.02,165.39,165.36,60.0]
[1717062545637,6.5631,165.44,165.38,60.0]
[1717062545948,7.02,165.41,165.38,60.0]
[1717062546855,6.1194,165.48,165.4,60.0]
[1717062547147,7.02,165.44,165.4,60.0]
[1717062548533,7.02,165.44,165.4,62.2369]
[1717062548935,7.02,165.44,165.41,2.2368]
[1717062549135,6.1194,165.48,165.41,2.2368]
[1717062549136,7.02,165.45,165.41,2.2368]
[1717062550345,7.02,165.44,165.41,2.2368]
[1717062551863,2.2359,165.48,165.43,60.0]
[1717062552043,7.02,165.47,165.43,60.0]
[1717062552756,7.02,165.47,165.42,2.2366]
[1717062552963,7.02,165.45,165.42,2.2366]
[1717062553379,2.2359,165.48,165.42,2.2366]
[1717062553553,7.02,165.45,165.42,2.2366]
[1717062553865,7.02,165.43,165.4,2.2369]
[1717062554246,2.2361,165.47,165.41,2.2368]
[1717062554542,7.02,165.44,165.41,2.2368]
[1717062555346,2.2361,165.47,165.41,2.2368]
[1717062555562,7.02,165.44,165.41,2.2368]
[1717062556071,7.02,165.45,165.42,2.2367]
[1717062557063,7.02,165.45,165.41,2.2368]
[1717062557872,6.369,165.52,165.43,62.2365]
[1717062558059,6.369,165.52,165.4,47.6939]
[1717062558060,6.369,165.52,165.45,60.0]
[1717062558264,2.2355,165.51,165.45,62.2362]
[1717062558776,7.02,165.48,165.45,62.2362]
[1717062558947,7.02,165.47,165.41,67.02]
[1717062559149,34.449,165.52,165.41,60.0]
[1717062559150,7.02,165.45,165.41,60.0]
[1717062559376,7.02,165.45,165.41,62.2368]
[1717062559585,7.02,165.45,165.42,2.2367]
[1717062559866,7.02,165.47,165.44,60.0]
[1717062561069,7.02,165.47,165.43,2.2365]
[1717062561276,7.02,165.44,165.42,6.6622]
[1717062562266,7.02,165.43,165.42,6.6622]
[1717062565977,7.02,165.43,165.4,15.44]
[1717062566280,2.2364,165.44,165.38,2.2372]
[1717062566281,7.02,165.41,165.38,2.2372]
[1717062568258,7.02,165.42,165.38,2.2372]
[1717062568486,7.02,165.42,165.38,62.2372]
[1717062569666,7.02,165.42,165.4,60.0]
[1717062569982,7.02,165.43,165.4,60.0]
[1717062572982,2.2363,165.45,165.4,60.0]
[1717062573285,7.02,165.43,165.4,60.0]
[1717062574274,7.02,165.44,165.4,60.0]
[1717062575585,7.02,165.44,165.42,60.0]
[1717062575813,2.2362,165.46,165.42,60.0]
[1717062576107,7.02,165.45,165.42,60.0]
[1717062578094,7.02,165.44,165.4,60.0]
[1717062579172,7.02,165.44,165.4,62.2369]
[1717062579368,2.2362,165.46,165.4,62.2369]
[1717062579584,7.02,165.44,165.4,62.2369]
[1717062579892,7.02,165.45,165.4,62.2369]
[1717062581893,7.02,165.44,165.4,62.2369]
[1717062582093,7.02,165.43,165.39,62.237]
[1717062582280,7.02,165.43,165.39,2.237]
[1717062582475,7.02,165.43,165.39,62.237]
[1717062582789,7.02,165.43,165.39,2.237]
[1717062583386,7.02,165.43,165.4,60.0]
[1717062584180,7.02,165.44,165.4,62.2369]
[1717062585794,7.02,165.44,165.4,2.2369]
[1717062588305,2.2362,165.46,165.41,2.2368]
[1717062588493,7.02,165.44,165.39,60.0]
[1717062588709,7.02,165.44,165.4,2.2369]
[1717062594407,7.02,165.42,165.38,60.0]
[1717062594818,4.4718,165.48,165.4,60.0]
[1717062595115,7.02,165.44,165.4,62.2369]
[1717062596608,7.02,165.43,165.4,62.2369]
[1717062597101,2.236,165.47,165.42,60.0]
[1717062597505,7.02,165.45,165.42,62.2366]
[1717062598386,2.2359,165.48,165.42,62.2366]
[1717062598387,7.02,165.46,165.42,62.2366]
[1717062598807,2.2359,165.48,165.42,62.2366]
[1717062599005,7.02,165.46,165.42,62.2366]
[1717062600821,2.2359,165.48,165.42,62.2366]
[1717062600996,7.02,165.46,165.42,62.2366]
[1717062601927,7.02,165.46,165.43,2.2365]
[1717062602131,2.2357,165.5,165.45,60.0]
[1717062602418,7.02,165.49,165.45,60.0]
[1717062602593,7.02,165.49,165.45,62.2362]
[1717062604293,7.02,165.49,165.46,2.2361]
[1717062609011,7.02,165.48,165.46,2.2361]
[1717062609218,7.02,165.48,165.45,60.0]
[1717062609219,7.02,165.47,165.42,96.2]
[1717062609405,2.42087762,165.51,165.43,20.0]
[1717062609406,7.02,165.46,165.43,20.0]
[1717062609606,2.2356,165.5,165.44,62.2363]
[1717062609811,7.02,165.48,165.45,2.2363]
[1717062610113,2.2355,165.51,165.46,62.2361]
[1717062610317,7.02,165.5,165.46,62.2361]
[1717062611013,2.2354,165.52,165.48,60.0]
[1717062611329,7.02,165.5,165.46,62.2361]
[1717062614730,2.2352,165.53,165.48,60.0]
[1717062615041,10.9349,165.58,165.5,60.0]
[1717062615211,7.02,165.53,165.5,60.0]
[1717062617910,7.02,165.53,165.48,62.2358]
[1717062618110,7.02,165.52,165.48,62.2358]
[1717062619923,7.02,165.52,165.49,2.2357]
[1717062620320,2.235,165.55,165.5,60.0]
[1717062620531,7.02,165.54,165.5,60.0]
[1717062620951,2.235,165.55,165.5,60.0]
[1717062621128,2.2348,165.56,165.5,62.2355]
[1717062621433,7.02,165.54,165.5,62.2355]
[1717062621610,7.02,165.54,165.5,60.0]
[1717062622215,7.02,165.53,165.5,60.0]
[1717062622920,7.02,165.53,165.49,2.2357]
[1717062623246,6.4658,165.58,165.46,96.2]
[1717062623247,7.02,165.5,165.46,96.2]
[1717062623436,7.02,165.49,165.46,98.4361]
[1717062624421,7.02,165.49,165.47,2.236]
[1717062624619,2.2354,165.52,165.47,2.236]
[1717062624850,7.02,165.49,165.47,2.236]
[1717062625223,7.02,165.49,165.46,96.2]
[1717062625438,7.02,165.49,165.46,98.4361]
[1717062625617,7.02,165.49,165.46,62.2361]
[1717062625818,8.88667762,165.58,165.45,388.7]
[1717062625819,7.02,165.47,165.45,388.7]
[1717062626131,7.02,165.46,165.45,388.7]
[1717062628120,7.02,165.46,165.41,2.2367]
[1717062628427,7.02,165.44,165.41,2.2367]
[1717062628726,7.02,165.44,165.39,60.0]
[1717062628934,7.02,165.44,165.41,2.2368]
[1717062629242,7.02,165.44,165.39,60.0]
[1717062629243,7.02,165.44,165.42,2.2366]
[1717062629444,7.02,165.44,165.43,2.2365]
[1717062629751,7.02,165.46,165.42,62.2366]
[1717062630821,28.08,165.52,165.44,60.0]
[1717062631033,7.02,165.47,165.44,60.0]
[1717062631268,7.02,165.47,165.44,62.2364]
[1717062631949,7.02,165.48,165.44,62.2364]
[1717062633150,7.02,165.48,165.44,60.0]
[1717062634045,7.02,165.47,165.44,60.0]
[1717062635959,7.02,165.48,165.46,60.0]
[1717062636542,7.02,165.49,165.46,60.0]
[1717062636744,2.2355,165.51,165.46,60.0]
[1717062637046,7.02,165.49,165.46,60.0]
[1717062640133,9.2556,165.5,165.46,60.0]
[1717062640537,9.2556,165.5,165.46,66.4027]
[1717062641556,9.2556,165.5,165.46,60.0]
[1717062641753,7.02,165.49,165.44,38.4364]
[1717062642056,7.02,165.48,165.45,60.0]
[1717062642255,7.02,165.49,165.45,60.0]
[1717062642644,2.2356,165.5,165.47,60.0]
[1717062642840,9.2556,165.5,165.47,60.0]
[1717062643758,9.2556,165.5,165.46,60.0]
[1717062645744,9.2557,165.49,165.46,60.0]
[1717062645950,7.02,165.48,165.46,60.0]
[1717062646755,7.02,165.48,165.45,60.0]
[1717062646942,7.02,165.48,165.44,38.4364]
[1717062647146,7.02,165.48,165.45,60.0]
[1717062648966,7.02,165.48,165.44,38.4364]
[1717062649359,2.2358,165.49,165.43,62.2365]
[1717062649675,7.02,165.47,165.43,62.2365]
[1717062650044,7.02,165.48,165.43,62.2365]
[1717062650251,2.2358,165.49,165.43,69.2565]
[1717062650570,2.2356,165.5,165.45,60.0]
[1717062652149,7.02,165.49,165.47,60.0]
[1717062654974,2.2355,165.51,165.47,60.0]
[1717062654975,7.02,165.5,165.47,60.0]
[1717062655154,9.2555,165.51,165.47,60.0]
[1717062656368,7.02,165.51,165.49,60.0]
[1717062656750,9.2554,165.52,165.49,60.0]
[1717062661069,2.2354,165.52,165.49,60.0]
[1717062661256,7.02,165.52,165.49,60.0]
[1717062662770,9.2552,165.53,165.51,60.0]
[1717062663978,7.02,165.53,165.51,60.0]
[1717062664279,6.0507,165.57,165.51,62.2354]
[1717062664478,6.0507,165.57,165.53,60.0]
[1717062664479,7.02,165.56,165.53,60.0]
[1717062664775,2.2347,165.57,165.53,60.0]
[1717062664981,7.02,165.56,165.53,60.0]
[1717062665161,9.2547,165.57,165.53,60.0]
[1717062665779,2.2345,165.58,165.55,60.0]
[1717062666068,9.2545,165.58,165.55,60.0]
[1717062666659,2.2345,165.58,165.55,60.0]
[1717062667086,9.2545,165.58,165.55,60.0]
[1717062667289,2.2345,165.58,165.55,60.0]
[1717062667580,9.2545,165.58,165.55,60.0]
[1717062668980,2.2345,165.58,165.55,60.0]
[1717062669185,2.2343,165.6,165.57,60.0]
[1717062669391,9.2543,165.6,165.57,60.0]
[1717062669969,7.02,165.61,165.57,60.0]
[1717062670270,7.02,165.61,165.57,62.2346]
[1717062670891,9.2541,165.62,165.58,62.2345]
[1717062671262,7.02,165.62,165.58,62.2345]
[1717062672099,9.2539,165.63,165.58,62.2345]
[1717062672401,7.02,165.61,165.58,60.0]
[1717062675070,2.2339,165.63,165.58,60.0]
[1717062675271,2.2339,165.63,165.58,62.2345]
[1717062675272,7.02,165.62,165.58,62.2345]
[1717062677788,2.2339,165.63,165.58,62.2345]
[1717062678092,7.02,165.62,165.58,62.2345]
[1717062678680,7.02,165.62,165.58,2.2345]
[1717062678890,2.2347,165.57,165.53,448.7]
[1717062679092,2.2348,165.56,165.53,388.7]
[1717062679282,6.88967762,165.59,165.53,388.7]
[1717062679490,7.02,165.54,165.53,388.7]
[1717062679678,9.2551,165.54,165.48,62.2358]
[1717062680022,7.02,165.53,165.48,62.2358]
[1717062680304,2.2348,165.56,165.52,60.0]
[1717062680592,7.02,165.54,165.52,60.0]
[1717062680773,7.02,165.55,165.52,60.0]
[1717062683466,2.2348,165.56,165.52,60.0]
[1717062683678,7.02,165.55,165.52,60.0]
[1717062684293,9.2549,165.55,165.5,60.0]
[1717062684782,7.02,165.54,165.5,60.0]
[1717062685873,7.02,165.53,165.49,2.2357]
[1717062686080,7.02,165.52,165.48,62.2358]
[1717062686602,7.02,165.52,165.49,2.2357]
[1717062686905,7.02,165.53,165.49,2.2357]
[1717062688799,6.7035,165.59,165.48,60.0]
[1717062689014,34.4306,165.6,165.51,2.2355]
[1717062689175,34.4306,165.6,165.5,60.0]
[1717062689176,2.2348,165.56,165.52,60.0]
[1717062689503,7.02,165.54,165.52,60.0]
[1717062689681,2.2348,165.56,165.52,60.0]
[1717062689998,7.02,165.54,165.52,60.0]
[1717062691893,2.2348,165.56,165.52,60.0]
[1717062692095,6.3506,165.6,165.54,60.0]
[1717062692096,2.2346,165.58,165.54,60.0]
[1717062692303,6.3506,165.6,165.54,60.0]
[1717062692304,2.2344,165.59,165.54,60.0]
[1717062692493,7.02,165.58,165.54,60.0]
[1717062692701,7.02,165.58,165.54,62.2351]
[1717062696109,6.3738,165.64,165.56,62.2347]
[1717062696312,7.02,165.6,165.56,62.2347]
[1717062697012,7.02,165.6,165.56,60.0]
[1717062697705,7.02,165.6,165.57,58.754]
[1717062697909,7.02,165.63,165.59,62.2344]
[1717062698209,7.02,165.62,165.58,2.2345]
[1717062698409,7.02,165.61,165.58,2.2345]
[1717062698786,7.02,165.61,165.59,2.2344]
[1717062698981,2.2337,165.64,165.59,62.2344]
[1717062699211,7.02,165.62,165.59,62.2344]
[1717062699397,7.02,165.63,165.59,62.2344]
[1717062699993,2.2337,165.64,165.59,62.2344]
[1717062700194,7.02,165.62,165.59,62.2344]
[1717062701987,2.2337,165.64,165.59,2.2344]
[1717062702192,7.02,165.62,165.59,2.2344]
[1717062704917,2.2336,165.65,165.6,2.2342]
[1717062705224,7.02,165.62,165.6,2.2342]
[1717062706022,7.02,165.62,165.59,2.2343]
[1717062706700,7.02,165.61,165.58,2.2345]
[1717062706917,7.02,165.6,165.57,2.2346]
[1717062707427,2.2342,165.61,165.56,2.2348]
[1717062707610,7.02,165.59,165.56,2.2348]
[1717062707806,2.2342,165.61,165.56,2.2348]
[1717062708003,7.02,165.59,165.56,2.2348]
[1717062708797,7.02,165.58,165.56,2.2348]
[1717062709999,7.02,165.59,165.56,2.2348]
[1717062714525,7.02,165.59,165.56,62.2348]
[1717062714735,7.02,165.6,165.56,62.2348]
[1717062714933,7.02,165.6,165.57,2.2347]
[1717062716725,2.234,165.62,165.57,2.2347]
[1717062716909,7.02,165.6,165.57,2.2347]
[1717062717109,2.234,165.62,165.57,2.2347]
[1717062717309,7.02,165.61,165.57,2.2347]
[1717062719037,7.02,165.6,165.57,2.2347]
[1717062719331,9.254,165.62,165.58,60.0]
[1717062719502,2.2339,165.63,165.58,62.2345]
[1717062719702,2.2337,165.64,165.59,2.2344]
[1717062719921,7.02,165.63,165.59,2.2344]
[1717062720303,7.02,165.63,165.58,60.0]
[1717062720498,6.3644,165.66,165.58,60.0]
[1717062720499,7.02,165.62,165.58,60.0]
[1717062720728,9.254,165.62,165.58,60.0]
[1717062720909,8.9345,165.65,165.54,75.3985]
[1717062721109,9.2543,165.6,165.54,75.3985]
[1717062721311,9.2543,165.6,165.54,82.4185]
[1717062721736,7.02,165.6,165.56,62.2348]
[1717062722119,7.02,165.6,165.58,60.0]
[1717062722424,7.02,165.61,165.58,60.0]
[1717062724135,9.254,165.62,165.58,60.0]
[1717062726740,2.234,165.62,165.58,60.0]
[1717062727029,9.254,165.62,165.58,60.0]
[1717062728222,2.2341,165.61,165.58,60.0]
[1717062729144,2.234,165.63,165.58,60.0]
[1717062729312,7.02,165.64,165.6,60.0]
[1717062729736,9.2537,165.64,165.6,60.0]
[1717062730113,2.2335,165.66,165.62,60.0]
[1717062730309,2.2336,165.65,165.62,60.0]
[1717062730546,2.2334,165.66,165.62,60.0]
[1717062730832,9.2534,165.66,165.62,60.0]
[1717062731045,2.2333,165.67,165.64,60.0]
[1717062731227,9.2533,165.67,165.64,60.0]
[1717062732335,9.2535,165.66,165.62,60.0]
[1717062733026,7.02,165.65,165.62,60.0]
[1717062733613,9.2535,165.66,165.62,60.0]
[1717062734247,7.02,165.66,165.62,62.234]
[1717062734736,9.2534,165.67,165.64,60.0]
[1717062735116,2.2332,165.68,165.64,60.0]
[1717062735320,9.2532,165.68,165.64,60.0]
[1717062737036,2.2332,165.68,165.64,60.0]
[1717062737234,9.2532,165.68,165.64,60.0]
[1717062738040,2.2332,165.68,165.64,60.0]
[1717062738229,9.2531,165.69,165.66,60.0]
[1717062739043,2.2331,165.69,165.66,60.0]
[1717062739336,9.2531,165.69,165.66,60.0]
[1717062740526,9.2532,165.68,165.66,60.0]
[1717062740728,9.2532,165.68,165.64,60.0]
[1717062741066,7.02,165.67,165.64,60.0]
[1717062744252,7.02,165.67,165.64,62.2337]
[1717062744926,7.02,165.68,165.64,62.2337]
[1717062745448,9.253,165.69,165.64,62.2337]
[1717062745857,2.233,165.69,165.65,2.2336]
[1717062746027,2.233,165.69,165.66,60.0]
[1717062746028,9.253,165.69,165.66,60.0]
[1717062748252,2.233,165.69,165.66,60.0]
[1717062748449,9.253,165.69,165.66,60.0]
[1717062748753,4.4654,165.72,165.68,60.0]
[1717062748754,9.2526,165.72,165.68,60.0]
[1717062750144,2.2326,165.72,165.68,60.0]
[1717062750317,9.2526,165.72,165.68,60.0]
[1717062750846,7.02,165.71,165.68,60.0]
[1717062752353,9.2526,165.72,165.68,60.0]
[1717062753031,7.02,165.71,165.68,60.0]
[1717062753844,2.2326,165.72,165.68,60.0]
[1717062754044,7.02,165.71,165.68,60.0]
[1717062754352,9.2526,165.72,165.68,60.0]
[1717062755132,9.2528,165.71,165.68,60.0]
[1717062755946,7.02,165.71,165.68,60.0]
[1717062760541,9.2527,165.72,165.68,60.0]
[1717062760741,2.2327,165.72,165.68,60.0]
[1717062760930,9.2527,165.72,165.68,60.0]
[1717062761560,9.2527,165.72,165.68,62.2332]
[1717062762048,9.2527,165.72,165.68,60.0]
[1717062762627,2.2325,165.73,165.68,98.4331]
[1717062762831,2.2325,165.73,165.7,60.0]
[1717062763030,9.2525,165.73,165.7,60.0]
[1717062764240,2.2325,165.73,165.7,60.0]
[1717062764550,9.2525,165.73,165.7,60.0]
[1717062764760,7.02,165.73,165.7,60.0]
[1717062765057,9.48331177,165.74,165.7,60.0]
[1717062765354,2.46331177,165.74,165.7,60.0]
[1717062765549,7.02,165.73,165.7,60.0]
[1717062767158,0.23091177,165.74,165.72,60.0]
[1717062767960,7.25091177,165.74,165.7,62.2328]
[1717062769740,7.02,165.72,165.68,62.2331]
[1717062769960,7.02,165.71,165.68,62.2331]
[1717062770939,7.02,165.72,165.68,62.2331]
[1717062771764,7.02,165.72,165.69,2.233]
[1717062772158,7.02,165.73,165.69,2.233]
[1717062776345,7.02,165.73,165.7,60.0]
[1717062777561,0.23091177,165.74,165.72,60.0]
[1717062777763,7.25091177,165.74,165.72,60.0]
[1717062777962,0.23091177,165.74,165.72,60.0]
[1717062784863,0.23091177,165.74,165.72,62.2326]
[1717062791770,0.23091177,165.74,165.73,2.2325]
[1717062791977,0.23091177,165.74,165.73,9.2525]
[1717062792484,0.23091177,165.74,165.73,2.2325]
[1717062798487,0.23091177,165.74,165.73,9.2525]
[1717062799071,0.23091177,165.74,165.73,2.2325]
[1717062806099,0.23091177,165.74,165.73,92.0236]
[1717062806396,0.23091177,165.74,165.73,99.3083]
[1717062807190,0.23091177,165.74,165.73,58.4325]
[1717062808103,0.23091177,165.74,165.73,65.4525]
[1717062808278,0.23091177,165.74,165.73,71.7029]
[1717062809296,0.23091177,165.74,165.73,76.1679]
[1717062810001,0.23091177,165.74,165.73,109.4868]
[1717062815522,0.23091177,165.74,165.73,102.4668]
[1717062815708,0.23091177,165.74,165.73,109.4868]
[1717062816324,0.23091177,165.74,165.73,498.1868]
[1717062824315,0.23091177,165.74,165.73,458.6175]
[1717062825190,0.23091177,165.74,165.73,451.5975]
[1717062825390,0.23091177,165.74,165.73,458.6175]
[1717062831523,0.23091177,165.74,165.73,85.5452]
[1717062836828,0.23091177,165.74,165.73,519.847]
[1717062838950,13.5984,165.83,165.81,60.0]
[1717062839608,13.5984,165.83,165.81,62.2314]
[1717062840099,13.5984,165.83,165.79,62.2316]
[1717062840304,7.02,165.82,165.77,60.0]
[1717062840545,6.5784,165.78,165.76,448.7]
[1717062840708,13.5984,165.78,165.76,448.7]
[1717062841239,13.5984,165.78,165.76,450.9321]
[1717062841604,7.02,165.8,165.78,60.0]
[1717062841820,13.6493,165.8,165.78,62.2318]
[1717062842121,2.2313,165.83,165.68,36.2]
[1717062842122,14.2072,165.77,165.68,36.2]
[1717062842423,7.02,165.72,165.7,62.2329]
[1717062842611,13.67,165.73,165.69,2.233]
[1717062843122,13.67,165.73,165.7,62.2329]
[1717062843825,13.2769,165.72,165.69,2.233]
[1717062844720,6.2569,165.72,165.7,62.2329]
[1717062845103,7.02,165.74,165.7,62.2329]
[1717062845411,7.5779,165.78,165.72,2.2325]
[1717062845412,13.2862,165.75,165.72,2.2325]
[1717062845634,6.2662,165.75,165.72,2.2325]
[1717062845839,6.2662,165.77,165.74,60.0]
[1717062846243,6.2662,165.77,165.73,2.2325]
[1717062846416,6.1693,165.76,165.73,2.2325]
[1717062846613,13.1893,165.76,165.73,2.2325]
[1717062846931,8.4966,165.8,165.74,60.0]
[1717062847139,7.02,165.78,165.74,60.0]
[1717062847517,13.1488,165.78,165.74,60.0]
[1717062848024,0.404259,165.81,165.73,2.2325]
[1717062848025,6.533059,165.81,165.77,62.2319]
[1717062848229,6.1288,165.8,165.76,9.2521]
[1717062848415,6.1288,165.8,165.77,2.232]
[1717062848815,6.1288,165.8,165.77,62.232]
[1717062849016,0.404259,165.81,165.8,2.2316]
[1717062849236,0.404259,165.81,165.8,38.4316]
[1717062849437,0.404259,165.81,165.8,45.4516]
[1717062850730,0.404259,165.81,165.8,2.2316]
[1717062852930,16.113159,165.81,165.76,388.7]
[1717062853246,13.6112,165.77,165.72,62.2325]
[1717062853547,13.6112,165.77,165.72,2.2325]
[1717062853548,7.02,165.76,165.72,2.2325]
[1717062853732,7.02,165.75,165.73,2.2325]
[1717062854035,7.02,165.76,165.74,2.2323]
[1717062854243,13.6112,165.76,165.71,60.0]
[1717062854439,6.5912,165.76,165.73,60.0]
[1717062854617,7.02,165.78,165.75,60.0]
[1717062854814,6.4062,165.77,165.73,60.0]
[1717062855021,6.4062,165.73,165.69,60.0]
[1717062855214,7.02,165.72,165.69,60.0]
[1717062855444,7.02,165.71,165.68,2.2331]
[1717062855818,13.3166,165.71,165.67,60.0]
[1717062856039,7.02,165.68,165.65,62.2336]
[1717062856241,13.2774,165.68,165.65,2.2336]
[1717062856447,6.2574,165.68,165.65,2.2336]
[1717062856647,13.2774,165.68,165.65,2.2336]
[1717062858458,6.2574,165.68,165.65,2.2336]
[1717062858749,13.2774,165.68,165.65,2.2336]
[1717062858951,6.2574,165.68,165.65,2.2336]
[1717062859158,13.2774,165.68,165.65,2.2336]
[1717062862638,6.2574,165.68,165.65,2.2336]
[1717062863348,6.2574,165.68,165.66,2.2334]
[1717062864054,13.2774,165.68,165.65,2.2335]
[1717062864629,6.2574,165.68,165.65,2.2335]
[1717062864949,6.2574,165.68,165.66,2.2334]
[1717062865348,7.02,165.7,165.66,60.0]
[1717062865553,7.02,165.71,165.68,2.2331]
[1717062865863,7.02,165.71,165.66,60.0]
[1717062865864,13.6696,165.71,165.66,60.0]
[1717062866036,7.02,165.7,165.66,60.0]
[1717062866237,7.02,165.69,165.67,2.2333]
[1717062866654,13.6696,165.69,165.66,2.2334]
[1717062867454,7.02,165.68,165.66,2.2334]
[1717062867833,2.2326,165.72,165.67,2.2333]
[1717062868049,7.02,165.69,165.67,2.2333]
[1717062868724,7.02,165.7,165.67,62.2333]
[1717062870236,7.02,165.7,165.66,2.2334]
[1717062870437,7.02,165.7,165.67,60.0]
[1717062870734,7.02,165.69,165.66,2.2334]
[1717062871455,2.2327,165.72,165.66,2.2334]
[1717062871663,7.02,165.69,165.66,2.2334]
[1717062872031,7.02,165.7,165.66,62.2334]
[1717062872232,7.02,165.69,165.66,62.2334]
[1717062872974,22.8251,165.68,165.61,60.0]
[1717062873263,7.02,165.64,165.6,60.0]
[1717062873429,7.02,165.64,165.59,43.22]
[1717062873632,7.02,165.64,165.61,2.234]
[1717062874033,7.02,165.64,165.62,2.234]
[1717062875649,15.6823,165.67,165.63,2.2338]
[1717062875845,7.02,165.64,165.63,2.2338]
[1717062876559,7.02,165.64,165.62,2.2339]
[1717062877267,15.6823,165.67,165.62,2.2339]
[1717062877465,2.2331,165.69,165.61,60.0]
[1717062877466,7.02,165.65,165.63,2.2338]
[1717062878239,7.02,165.65,165.62,2.2339]
[1717062878669,7.02,165.65,165.63,2.2338]
[1717062880067,2.2331,165.69,165.63,2.2338]
[1717062880562,7.02,165.65,165.63,2.2338]
[1717062880739,7.02,165.66,165.62,60.0]
[1717062880944,7.02,165.66,165.63,2.2338]
[1717062881373,2.2331,165.69,165.63,2.2338]